fUSD/lending_fUSD_20260605
["ID","MTS","AMOUNT","RATE_DAILY","PERIOD"]
[424197955,1780647040000,-649525.84860634,9.929e-05,2]
[424197961,1780647040000,-1745.93,0.00010028,2]
[424197954,1780647040000,-2518.96,9.929e-05,2]
[424197993,1780647041000,-250.0,0.00010228,2]
[424197989,1780647041000,-166.66,0.00010144,2]
[424197987,1780647041000,-9999.99,0.00010138,2]
[424197998,1780647041000,-2000.0,0.00010274,2]
[424198000,1780647041000,-500.0,0.00010329,2]
[424198002,1780647041000,-166.66,0.00010458,2]
[424197999,1780647041000,-4000.0,0.00010278,2]
[424198007,1780647041000,-791.67405702,0.0001083,2]
[424198008,1780647041000,-4071.20658001,0.000109,2]
[424198004,1780647041000,-4000.0,0.00010529,2]
[424198001,1780647041000,-160.0,0.00010347,2]
[424198010,1780647041000,-164.7,0.00010921,2]
[424198006,1780647041000,-4000.0,0.00010779,2]
[424197994,1780647041000,-10025.0,0.0001023,2]
[424198005,1780647041000,-166.66,0.00010772,2]
[424198009,1780647041000,-4071.20657997,0.000109,2]
[424198011,1780647041000,-1680.0,0.00010921,2]
[424198012,1780647041000,-233.87790747,0.00010932,2]
[424198023,1780647041000,-150.0,0.00011233,2]
[424198022,1780647041000,-23786.59023411,0.00011099,2]
[424198013,1780647041000,-150.0,0.00010959,2]
[424198015,1780647041000,-4000.0,0.00011031,2]
[424198017,1780647041000,-250.0,0.00011031,2]
[424198019,1780647041000,-166.66,0.00011086,2]
[424198014,1780647041000,-4000.0,0.0001103,2]
[424198016,1780647041000,-193.0,0.00011031,2]
[424198003,1780647041000,-4782.0,0.0001051,2]
[424197990,1780647041000,-267.59818152,0.00010219,2]
[424197997,1780647041000,-193.0,0.00010264,2]
[424197995,1780647041000,-500.0,0.00010247,2]
[424197962,1780647041000,-10158.86,0.00010028,2]
[424197972,1780647041000,-9999.99,0.00010129,2]
[424197974,1780647041000,-1103.97,0.00010129,2]
[424197963,1780647041000,-13434.42,0.00010028,2]
[424197970,1780647041000,-7224.23,0.00010129,2]
[424197968,1780647041000,-3773.12,0.0001012,2]
[424197964,1780647041000,-1317.6314,0.00010029,2]
[424197965,1780647041000,-4009.2347,0.00010029,2]
[424197967,1780647041000,-154.66874875,0.00010029,2]
[424197969,1780647041000,-150.0,0.00010129,2]
[424197971,1780647041000,-24999.99,0.00010129,2]
[424197966,1780647041000,-99319.5527,0.00010029,2]
[424197976,1780647041000,-2600.34,0.00010129,2]
[424197975,1780647041000,-19816.59,0.00010129,2]
[424197978,1780647041000,-3391.61,0.00010129,2]
[424197977,1780647041000,-9999.99,0.00010129,2]
[424197982,1780647041000,-299.99,0.0001013,2]
[424197983,1780647041000,-999.99,0.0001013,2]
[424197984,1780647041000,-24625.15,0.00010134,2]
[424197985,1780647041000,-9999.99,0.00010134,2]
[424197979,1780647041000,-250.0319068,0.00010129,2]
[424197981,1780647041000,-150.99,0.0001013,2]
[424197980,1780647041000,-6896.0,0.0001013,2]
[424197986,1780647041000,-233.87790749,0.00010138,2]
[424197992,1780647041000,-150.0,0.00010228,2]
[424197988,1780647041000,-150.0,0.00010138,2]
[424197991,1780647041000,-163.61,0.00010226,2]
[424198021,1780647041000,-23786.59023411,0.00011099,2]
[424198020,1780647041000,-23786.59023418,0.00011099,2]
[424197996,1780647041000,-208.1838872,0.0001026,2]
[424198024,1780647041000,-4071.20657997,0.00011492,2]
[424198068,1780647041000,-202.414943,0.00013277,2]
[424198063,1780647041000,-1241.0198,0.00013206,2]
[424198071,1780647041000,-164.7,0.00013348,2]
[424198073,1780647041000,-150.0,0.00013462,2]
[424198083,1780647041000,-150.0,0.00013488,2]
[424198078,1780647041000,-150.0,0.00013488,2]
[424198074,1780647041000,-150.0,0.00013462,2]
[424198079,1780647041000,-150.0,0.00013488,2]
[424198072,1780647041000,-2000.0,0.00013446,2]
[424198082,1780647041000,-203.7220427,0.00013488,2]
[424198076,1780647041000,-150.0,0.00013488,2]
[424198077,1780647041000,-150.0,0.00013488,2]
[424198081,1780647041000,-150.0,0.00013488,2]
[424198075,1780647041000,-150.0,0.00013488,2]
[424198080,1780647041000,-150.0,0.00013488,2]
[424198084,1780647041000,-203.55691112,0.00013488,2]
[424198087,1780647041000,-203.55691112,0.00013518,2]
[424198086,1780647041000,-203.55691112,0.00013503,2]
[424198089,1780647041000,-203.55691112,0.00013533,2]
[424198088,1780647041000,-150.0,0.00013528,2]
[424198090,1780647041000,-4071.20657997,0.00013537,2]
[424198085,1780647041000,-150.0,0.00013488,2]
[424198092,1780647041000,-150.0,0.00013548,2]
[424198091,1780647041000,-150.0,0.00013548,2]
[424198018,1780647041000,-255.0,0.00011031,2]
[424198094,1780647041000,-1923.43,0.00013549,2]
[424198095,1780647041000,-203.55691112,0.00013563,2]
[424198062,1780647041000,-351.74819876,0.00013146,2]
[424198065,1780647041000,-275.112495,0.00013218,2]
[424198093,1780647041000,-203.55691112,0.00013548,2]
[424198066,1780647041000,-186.18115721,0.00013267,2]
[424198061,1780647041000,-150.52165905,0.00013129,2]
[424198026,1780647041000,-2000.0,0.00011558,2]
[424198033,1780647041000,-233.87790747,0.00011725,2]
[424198030,1780647041000,-7452.0,0.00011587,2]
[424198035,1780647041000,-150.0,0.00011787,2]
[424198040,1780647041000,-1696.8,0.00012055,2]
[424198038,1780647041000,-1680.0,0.00012013,2]
[424198042,1780647041000,-433.0,0.00012134,2]
[424198044,1780647041000,-164.7,0.00012134,2]
[424198046,1780647041000,-250.0,0.00012145,2]
[424198047,1780647041000,-4071.20657997,0.00012174,2]
[424198049,1780647041000,-612.88,0.00012329,2]
[424198056,1780647041000,-2000.0,0.00012842,2]
[424198048,1780647041000,-151.0,0.00012264,2]
[424198028,1780647041000,-23786.59023411,0.00011585,2]
[424198051,1780647041000,-250.0319068,0.00012515,2]
[424198057,1780647041000,-4071.20657997,0.00012855,2]
[424198070,1780647041000,-736.0,0.00013347,2]
[424198064,1780647041000,-239.330902,0.00013218,2]
[424198060,1780647041000,-599.365341,0.00013081,2]
[424198055,1780647041000,-17166.97599229,0.00012735,2]
[424198069,1780647041000,-233.87790747,0.00013313,2]
[424198058,1780647041000,-10626.41,0.00012893,2]
[424198050,1780647041000,-8154.0,0.00012514,2]
[424198052,1780647041000,-233.87790747,0.00012519,2]
[424198067,1780647041000,-17166.97599229,0.00013276,2]
[424198059,1780647041000,-19494.96,0.00012893,2]
[424198054,1780647041000,-186.18115721,0.00012575,2]
[424198053,1780647041000,-150.52165905,0.00012575,2]
[424198122,1780647042000,-500.0,0.00013698,2]
[424198148,1780647042000,-500.0,0.00013698,2]
[424198133,1780647042000,-500.0,0.00013698,2]
[424198132,1780647042000,-437.35290326,0.00013698,2]
[424198126,1780647042000,-500.0,0.00013698,2]
[424198128,1780647042000,-500.0,0.00013698,2]
[424198125,1780647042000,-500.0,0.00013698,2]
[424198129,1780647042000,-500.0,0.00013698,2]
[424198124,1780647042000,-500.0,0.00013698,2]
[424198141,1780647042000,-500.0,0.00013698,2]
[424198137,1780647042000,-500.0,0.00013698,2]
[424198135,1780647042000,-500.0,0.00013698,2]
[424198144,1780647042000,-500.0,0.00013698,2]
[424198139,1780647042000,-500.0,0.00013698,2]
[424198138,1780647042000,-500.0,0.00013698,2]
[424198147,1780647042000,-500.0,0.00013698,2]
[424198142,1780647042000,-500.0,0.00013698,2]
[424198145,1780647042000,-500.0,0.00013698,2]
[424198146,1780647042000,-500.0,0.00013698,2]
[424198143,1780647042000,-500.0,0.00013698,2]
[424198150,1780647042000,-500.0,0.00013698,2]
[424198153,1780647042000,-500.0,0.00013698,2]
[424198149,1780647042000,-500.0,0.00013698,2]
[424198123,1780647042000,-500.0,0.00013698,2]
[424198140,1780647042000,-500.0,0.00013698,2]
[424198130,1780647042000,-500.0,0.00013698,2]
[424198101,1780647042000,-150.0,0.00013608,2]
[424198120,1780647042000,-500.0,0.00013698,2]
[424198155,1780647042000,-500.0,0.00013698,2]
[424198096,1780647042000,-150.0,0.00013569,2]
[424198098,1780647042000,-150.0,0.00013588,2]
[424198108,1780647042000,-150.0,0.00013668,2]
[424198099,1780647042000,-203.55691112,0.00013594,2]
[424198100,1780647042000,-150.0,0.00013608,2]
[424198097,1780647042000,-203.55691112,0.00013578,2]
[424198107,1780647042000,-203.55691112,0.00013654,2]
[424198105,1780647042000,-203.55691112,0.00013639,2]
[424198104,1780647042000,-203.55691112,0.00013624,2]
[424198106,1780647042000,-150.0,0.0001365,2]
[424198127,1780647042000,-500.0,0.00013698,2]
[424198102,1780647042000,-203.55691112,0.00013609,2]
[424198109,1780647042000,-150.0,0.00013668,2]
[424198110,1780647042000,-203.55691112,0.00013669,2]
[424198111,1780647042000,-203.55691112,0.00013684,2]
[424198117,1780647042000,-500.0,0.00013698,2]
[424198118,1780647042000,-500.0,0.00013698,2]
[424198114,1780647042000,-150.0,0.0001369,2]
[424198112,1780647042000,-150.0,0.00013687,2]
[424198119,1780647042000,-500.0,0.00013698,2]
[424198113,1780647042000,-9745.0,0.00013689,2]
[424198115,1780647042000,-500.0,0.00013698,2]
[424198116,1780647042000,-500.0,0.00013698,2]
[424198103,1780647042000,-150.0,0.00013609,2]
[424198151,1780647042000,-500.0,0.00013698,2]
[424198136,1780647042000,-300.0,0.00013698,2]
[424198154,1780647042000,-500.0,0.00013698,2]
[424198190,1780647042000,-500.0,0.00013698,2]
[424198192,1780647042000,-500.0,0.00013698,2]
[424198193,1780647042000,-500.0,0.00013698,2]
[424198199,1780647042000,-500.0,0.00013698,2]
[424198195,1780647042000,-500.0,0.00013698,2]
[424198197,1780647042000,-500.0,0.00013698,2]
[424198201,1780647042000,-500.0,0.00013698,2]
[424198202,1780647042000,-212.1318407,0.00013698,2]
[424198205,1780647042000,-500.0,0.00013698,2]
[424198206,1780647042000,-550.90519724,0.00013698,2]
[424198211,1780647042000,-500.0,0.00013698,2]
[424198181,1780647042000,-500.0,0.00013698,2]
[424198210,1780647042000,-500.0,0.00013698,2]
[424198207,1780647042000,-500.0,0.00013698,2]
[424198209,1780647042000,-500.0,0.00013698,2]
[424198212,1780647042000,-500.0,0.00013698,2]
[424198221,1780647042000,-500.0,0.00013698,2]
[424198215,1780647042000,-500.0,0.00013698,2]
[424198217,1780647042000,-500.0,0.00013698,2]
[424198220,1780647042000,-500.0,0.00013698,2]
[424198219,1780647042000,-543.76,0.00013698,2]
[424198214,1780647042000,-500.0,0.00013698,2]
[424198216,1780647042000,-500.0,0.00013698,2]
[424198152,1780647042000,-500.0,0.00013698,2]
[424198208,1780647042000,-500.0,0.00013698,2]
[424198191,1780647042000,-500.0,0.00013698,2]
[424198213,1780647042000,-336.96748853,0.00013698,2]
[424198186,1780647042000,-500.0,0.00013698,2]
[424198189,1780647042000,-500.0,0.00013698,2]
[424198160,1780647042000,-500.0,0.00013698,2]
[424198158,1780647042000,-500.0,0.00013698,2]
[424198156,1780647042000,-500.0,0.00013698,2]
[424198159,1780647042000,-500.0,0.00013698,2]
[424198161,1780647042000,-500.0,0.00013698,2]
[424198164,1780647042000,-500.0,0.00013698,2]
[424198163,1780647042000,-500.0,0.00013698,2]
[424198165,1780647042000,-176.18769994,0.00013698,2]
[424198166,1780647042000,-500.0,0.00013698,2]
[424198162,1780647042000,-500.0,0.00013698,2]
[424198168,1780647042000,-500.0,0.00013698,2]
[424198157,1780647042000,-500.0,0.00013698,2]
[424198170,1780647042000,-500.0,0.00013698,2]
[424198188,1780647042000,-500.0,0.00013698,2]
[424198173,1780647042000,-500.0,0.00013698,2]
[424198187,1780647042000,-241.38210982,0.00013698,2]
[424198185,1780647042000,-500.0,0.00013698,2]
[424198183,1780647042000,-249.3098753,0.00013698,2]
[424198182,1780647042000,-500.0,0.00013698,2]
[424198184,1780647042000,-500.0,0.00013698,2]
[424198179,1780647042000,-500.0,0.00013698,2]
[424198176,1780647042000,-323.69673593,0.00013698,2]
[424198218,1780647042000,-500.0,0.00013698,2]
[424198178,1780647042000,-500.0,0.00013698,2]
[424198180,1780647042000,-500.0,0.00013698,2]
[424198246,1780647043000,-203.55691112,0.0001376,2]
[424198253,1780647043000,-203.55691112,0.0001379,2]
[424198250,1780647043000,-150.0,0.00013787,2]
[424198244,1780647043000,-150.0,0.00013731,2]
[424198245,1780647043000,-203.55691112,0.00013745,2]
[424198247,1780647043000,-150.0,0.00013771,2]
[424198248,1780647043000,-203.55691112,0.00013775,2]
[424198252,1780647043000,-150.0,0.00013787,2]
[424198258,1780647043000,-166.66,0.00013836,2]
[424198256,1780647043000,-17166.97599229,0.00013818,2]
[424198255,1780647043000,-150.0,0.00013812,2]
[424198257,1780647043000,-203.55691112,0.00013821,2]
[424198259,1780647043000,-203.55691112,0.00013836,2]
[424198261,1780647043000,-150.0,0.00013847,2]
[424198251,1780647043000,-150.0,0.00013787,2]
[424198260,1780647043000,-500.0,0.00013839,2]
[424198254,1780647043000,-203.55691112,0.00013806,2]
[424198249,1780647043000,-354.25778862,0.00013778,2]
[424198240,1780647043000,-203.55691112,0.00013715,2]
[424198243,1780647043000,-203.55691112,0.0001373,2]
[424198263,1780647043000,-203.55691112,0.00013851,2]
[424198226,1780647043000,-500.0,0.00013698,2]
[424198225,1780647043000,-500.0,0.00013698,2]
[424198228,1780647043000,-500.0,0.00013698,2]
[424198227,1780647043000,-500.0,0.00013698,2]
[424198230,1780647043000,-500.0,0.00013698,2]
[424198231,1780647043000,-500.0,0.00013698,2]
[424198229,1780647043000,-500.0,0.00013698,2]
[424198233,1780647043000,-500.0,0.00013698,2]
[424198236,1780647043000,-166.66,0.00013699,2]
[424198232,1780647043000,-500.0,0.00013698,2]
[424198235,1780647043000,-200.0,0.00013699,2]
[424198238,1780647043000,-454.0,0.00013699,2]
[424198234,1780647043000,-500.0,0.00013698,2]
[424198239,1780647043000,-203.55691112,0.000137,2]
[424198237,1780647043000,-442.0,0.00013699,2]
[424198242,1780647043000,-150.0,0.00013727,2]
[424198241,1780647043000,-150.0,0.00013727,2]
[424198264,1780647043000,-150.0,0.00013852,2]
[424198262,1780647043000,-150.0,0.00013847,2]
[424198266,1780647043000,-203.55691112,0.00013881,2]
[424198299,1780647043000,-1040686.9128492,0.00013989,2]
[424198297,1780647043000,-500.0,0.00013988,2]
[424198296,1780647043000,-500.0,0.00013988,2]
[424198293,1780647043000,-500.0,0.00013988,2]
[424198298,1780647043000,-3463.8252257,0.00013989,2]
[424198302,1780647043000,-151.0,0.00013989,2]
[424198300,1780647043000,-151.0,0.00013989,2]
[424198301,1780647043000,-151.0,0.00013989,2]
[424198303,1780647043000,-500.0,0.00013989,2]
[424198305,1780647043000,-500.0,0.00013989,2]
[424198310,1780647043000,-500.0,0.00013989,2]
[424198304,1780647043000,-500.0,0.00013989,2]
[424198306,1780647043000,-500.0,0.00013989,2]
[424198307,1780647043000,-500.0,0.00013989,2]
[424198311,1780647043000,-500.0,0.00013989,2]
[424198308,1780647043000,-500.0,0.00013989,2]
[424198265,1780647043000,-203.55691112,0.00013866,2]
[424198295,1780647043000,-500.0,0.00013988,2]
[424198289,1780647043000,-150.0,0.00013987,2]
[424198309,1780647043000,-500.0,0.00013989,2]
[424198287,1780647043000,-150.0,0.00013987,2]
[424198270,1780647043000,-203.55691112,0.00013896,2]
[424198291,1780647043000,-203.55691112,0.00013987,2]
[424198272,1780647043000,-150.0,0.00013907,2]
[424198269,1780647043000,-150.0,0.00013893,2]
[424198271,1780647043000,-150.0,0.00013907,2]
[424198267,1780647043000,-150.0,0.00013887,2]
[424198273,1780647043000,-203.55691112,0.00013912,2]
[424198275,1780647043000,-150.0,0.00013933,2]
[424198268,1780647043000,-180.9789065,0.00013889,2]
[424198278,1780647043000,-186.18115721,0.00013959,2]
[424198283,1780647043000,-166.66,0.00013973,2]
[424198281,1780647043000,-203.55691112,0.00013972,2]
[424198277,1780647043000,-203.55691112,0.00013957,2]
[424198280,1780647043000,-150.0,0.00013967,2]
[424198274,1780647043000,-203.55691112,0.00013927,2]
[424198285,1780647043000,-150.0,0.00013974,2]
[424198276,1780647043000,-203.55691112,0.00013942,2]
[424198279,1780647043000,-150.0,0.00013967,2]
[424198354,1780647044000,-500.0,0.00013989,2]
[424198359,1780647044000,-500.0,0.00013989,2]
[424198356,1780647044000,-500.0,0.00013989,2]
[424198351,1780647044000,-500.0,0.00013989,2]
[424198347,1780647044000,-500.0,0.00013989,2]
[424198349,1780647044000,-500.0,0.00013989,2]
[424198346,1780647044000,-500.0,0.00013989,2]
[424198345,1780647044000,-500.0,0.00013989,2]
[424198343,1780647044000,-500.0,0.00013989,2]
[424198358,1780647044000,-500.0,0.00013989,2]
[424198344,1780647044000,-500.0,0.00013989,2]
[424198348,1780647044000,-151.0,0.00013989,2]
[424198352,1780647044000,-500.0,0.00013989,2]
[424198367,1780647044000,-151.0,0.00013989,2]
[424198360,1780647044000,-311.562506,0.00013989,2]
[424198361,1780647044000,-151.0,0.00013989,2]
[424198362,1780647044000,-983.012832,0.00013989,2]
[424198365,1780647044000,-983.012832,0.00013989,2]
[424198366,1780647044000,-154.330341,0.00013989,2]
[424198364,1780647044000,-983.012832,0.00013989,2]
[424198378,1780647044000,-203.55691112,0.00014048,2]
[424198376,1780647044000,-150.0,0.00014027,2]
[424198377,1780647044000,-203.55691112,0.00014033,2]
[424198370,1780647044000,-203.55691112,0.00014002,2]
[424198368,1780647044000,-151.0,0.00013989,2]
[424198342,1780647044000,-500.0,0.00013989,2]
[424198363,1780647044000,-983.012832,0.00013989,2]
[424198341,1780647044000,-500.0,0.00013989,2]
[424198322,1780647044000,-500.0,0.00013989,2]
[424198350,1780647044000,-500.0,0.00013989,2]
[424198375,1780647044000,-150.0,0.00014027,2]
[424198312,1780647044000,-500.0,0.00013989,2]
[424198314,1780647044000,-500.0,0.00013989,2]
[424198313,1780647044000,-500.0,0.00013989,2]
[424198316,1780647044000,-500.0,0.00013989,2]
[424198323,1780647044000,-500.0,0.00013989,2]
[424198324,1780647044000,-500.0,0.00013989,2]
[424198315,1780647044000,-500.0,0.00013989,2]
[424198317,1780647044000,-500.0,0.00013989,2]
[424198318,1780647044000,-500.0,0.00013989,2]
[424198320,1780647044000,-500.0,0.00013989,2]
[424198325,1780647044000,-500.0,0.00013989,2]
[424198319,1780647044000,-500.0,0.00013989,2]
[424198339,1780647044000,-500.0,0.00013989,2]
[424198321,1780647044000,-500.0,0.00013989,2]
[424198329,1780647044000,-500.0,0.00013989,2]
[424198326,1780647044000,-500.0,0.00013989,2]
[424198327,1780647044000,-500.0,0.00013989,2]
[424198336,1780647044000,-500.0,0.00013989,2]
[424198334,1780647044000,-500.0,0.00013989,2]
[424198333,1780647044000,-500.0,0.00013989,2]
[424198331,1780647044000,-500.0,0.00013989,2]
[424198337,1780647044000,-500.0,0.00013989,2]
[424198330,1780647044000,-500.0,0.00013989,2]
[424198332,1780647044000,-500.0,0.00013989,2]
[424198335,1780647044000,-500.0,0.00013989,2]
[424198338,1780647044000,-500.0,0.00013989,2]
[424198340,1780647044000,-500.0,0.00013989,2]
[424198328,1780647044000,-500.0,0.00013989,2]
[424198371,1780647044000,-492.52405906,0.00014011,2]
[424198369,1780647044000,-151.0,0.00013989,2]
[424198374,1780647044000,-203.55691112,0.00014017,2]
[424198409,1780647044000,-203.55691112,0.00014229,2]
[424198408,1780647044000,-4071.20657997,0.00014218,2]
[424198414,1780647044000,-203.55691112,0.0001426,2]
[424198413,1780647044000,-150.0,0.00014257,2]
[424198411,1780647044000,-203.55691112,0.00014245,2]
[424198412,1780647044000,-166.66,0.00014247,2]
[424198417,1780647044000,-203.55691112,0.00014275,2]
[424198421,1780647044000,-203.55691112,0.00014305,2]
[424198419,1780647044000,-203.55691112,0.0001429,2]
[424198416,1780647044000,-150.0,0.00014267,2]
[424198420,1780647044000,-150.0,0.00014298,2]
[424198428,1780647044000,-17166.97599229,0.00014359,2]
[424198427,1780647044000,-203.55691112,0.00014351,2]
[424198418,1780647044000,-150.0,0.00014287,2]
[424198422,1780647044000,-203.55691112,0.0001432,2]
[424198424,1780647044000,-150.0,0.00014327,2]
[424198426,1780647044000,-150.0,0.00014338,2]
[424198423,1780647044000,-150.0,0.00014327,2]
[424198425,1780647044000,-203.55691112,0.00014335,2]
[424198429,1780647044000,-203.55691112,0.00014366,2]
[424198432,1780647044000,-203.55691112,0.00014381,2]
[424198431,1780647044000,-500.0,0.0001438,2]
[424198433,1780647044000,-166.66,0.00014384,2]
[424198430,1780647044000,-150.0,0.00014379,2]
[424198436,1780647044000,-150.0,0.00014387,2]
[424198435,1780647044000,-1000.0,0.00014387,2]
[424198372,1780647044000,-8365.0,0.00014014,2]
[424198415,1780647044000,-150.0,0.00014267,2]
[424198405,1780647044000,-150.0,0.00014207,2]
[424198434,1780647044000,-1044.42625668,0.00014387,2]
[424198407,1780647044000,-150.0,0.00014217,2]
[424198410,1780647044000,-150.0,0.00014237,2]
[424198373,1780647044000,-150.0,0.00014014,2]
[424198379,1780647044000,-150.0,0.00014055,2]
[424198385,1780647044000,-203.55691112,0.00014093,2]
[424198380,1780647044000,-203.55691112,0.00014063,2]
[424198384,1780647044000,-150.0,0.00014087,2]
[424198383,1780647044000,-150.0,0.00014087,2]
[424198382,1780647044000,-150.0,0.00014087,2]
[424198386,1780647044000,-150.0,0.00014095,2]
[424198389,1780647044000,-166.66,0.0001411,2]
[424198387,1780647044000,-233.87790747,0.00014106,2]
[424198388,1780647044000,-203.55691112,0.00014108,2]
[424198391,1780647044000,-2000.0,0.00014126,2]
[424198390,1780647044000,-203.55691112,0.00014123,2]
[424198381,1780647044000,-203.55691112,0.00014078,2]
[424198403,1780647044000,-203.55691112,0.00014199,2]
[424198393,1780647044000,-203.55691112,0.00014139,2]
[424198406,1780647044000,-203.55691112,0.00014214,2]
[424198398,1780647044000,-203.55691112,0.00014169,2]
[424198397,1780647044000,-203.55691112,0.00014154,2]
[424198401,1780647044000,-203.55691112,0.00014184,2]
[424198402,1780647044000,-150.0,0.00014187,2]
[424198394,1780647044000,-150.0,0.00014147,2]
[424198392,1780647044000,-150.0,0.00014136,2]
[424198399,1780647044000,-150.0,0.00014176,2]
[424198396,1780647044000,-372.58578916,0.00014149,2]
[424198404,1780647044000,-150.0,0.00014207,2]
[424198400,1780647044000,-275.13,0.00014177,2]
[424198395,1780647044000,-150.0,0.00014147,2]
[424198466,1780647045000,-150.0,0.00014567,2]
[424198471,1780647045000,-1500.0,0.00014582,2]
[424198467,1780647045000,-150.0,0.00014567,2]
[424198472,1780647045000,-150.0,0.00014587,2]
[424198468,1780647045000,-203.55691112,0.00014578,2]
[424198469,1780647045000,-150.0,0.00014581,2]
[424198474,1780647045000,-203.55691112,0.00014608,2]
[424198477,1780647045000,-150.0,0.00014627,2]
[424198473,1780647045000,-203.55691112,0.00014593,2]
[424198476,1780647045000,-203.55691112,0.00014623,2]
[424198470,1780647045000,-1030.0,0.00014582,2]
[424198483,1780647045000,-203.55691112,0.00014668,2]
[424198479,1780647045000,-203.55691112,0.00014638,2]
[424198489,1780647045000,-203.55691112,0.00014699,2]
[424198478,1780647045000,-150.0,0.00014627,2]
[424198481,1780647045000,-150.0,0.00014662,2]
[424198486,1780647045000,-150.0,0.00014687,2]
[424198482,1780647045000,-200.0,0.00014668,2]
[424198480,1780647045000,-203.55691112,0.00014653,2]
[424198485,1780647045000,-203.55691112,0.00014684,2]
[424198487,1780647045000,-150.0,0.00014687,2]
[424198464,1780647045000,-164.7,0.00014561,2]
[424198488,1780647045000,-150.0,0.00014687,2]
[424198475,1780647045000,-150.0,0.00014622,2]
[424198462,1780647045000,-150.0,0.00014541,2]
[424198445,1780647045000,-150.0,0.00014447,2]
[424198460,1780647045000,-203.55691112,0.00014517,2]
[424198484,1780647045000,-1252.0,0.00014681,2]
[424198441,1780647045000,-404.86604414,0.00014413,2]
[424198440,1780647045000,-203.55691112,0.00014411,2]
[424198439,1780647045000,-203.55691112,0.00014396,2]
[424198438,1780647045000,-150.0,0.00014387,2]
[424198437,1780647045000,-150.0,0.00014387,2]
[424198443,1780647045000,-203.55691112,0.00014426,2]
[424198442,1780647045000,-150.0,0.00014419,2]
[424198453,1780647045000,-203.55691112,0.00014487,2]
[424198452,1780647045000,-150.0,0.00014487,2]
[424198444,1780647045000,-203.55691112,0.00014441,2]
[424198447,1780647045000,-203.55691112,0.00014456,2]
[424198446,1780647045000,-150.0,0.00014447,2]
[424198448,1780647045000,-150.0,0.0001446,2]
[424198449,1780647045000,-200.0,0.00014468,2]
[424198451,1780647045000,-150.0,0.00014487,2]
[424198450,1780647045000,-203.55691112,0.00014472,2]
[424198455,1780647045000,-181.755,0.00014487,2]
[424198454,1780647045000,-3323.664,0.00014487,2]
[424198456,1780647045000,-150.0,0.000145,2]
[424198457,1780647045000,-203.55691112,0.00014502,2]
[424198458,1780647045000,-150.0,0.00014507,2]
[424198461,1780647045000,-203.55691112,0.00014532,2]
[424198459,1780647045000,-150.0,0.00014507,2]
[424198465,1780647045000,-203.55691112,0.00014562,2]
[424198463,1780647045000,-203.55691112,0.00014547,2]
[424198492,1780647045000,-203.55691112,0.00014729,2]
[424198512,1780647045000,-500.0,0.00014795,2]
[424198491,1780647045000,-203.55691112,0.00014714,2]
[424198524,1780647045000,-203.55691112,0.0001482,2]
[424198523,1780647045000,-150.0,0.00014806,2]
[424198521,1780647045000,-203.55691112,0.00014805,2]
[424198526,1780647045000,-203.55691112,0.00014835,2]
[424198525,1780647045000,-150.0,0.00014824,2]
[424198527,1780647045000,-2000.0,0.0001485,2]
[424198528,1780647045000,-203.55691112,0.0001485,2]
[424198530,1780647045000,-203.55691112,0.00014865,2]